Cogmind - Beta 14 @@@ ROGUE MODE // 2024.09.15 @ 21:33:47 Player: Dull Result: Destroyed by as-67660 with Assembled Heavy Rifle Performance ------------- Evolutions (0) 0 Regions Visited (2) 400 Robots Destroyed (26) 130 Value Destroyed (625) 625 Prototype IDs (3) 60 Alien Tech Used (0) 0 Bonus (0) 0 TOTAL SCORE: 1215 Bonus ------- None Cogmind --------- Core Integrity 0/250 Matter 270/300 Energy 115/125 System Corruption 11% Temperature Cool (13) Movement Rolling (135) Ox3 Location -10/Mines Parts ------- > --- POWER (1) -------- Light Ion Engine > --- PROPULSION (2) --- Wheel Compact Wheel > --- UTILITY (2) ------ Huge Storage Unit Terrain Scan Processor > --- WEAPON (2) ------- Medium Laser Medium Laser > --- INVENTORY (25) --- Ion Engine Improved Ion Engine Improved Ion Engine Wheel Compact Wheel Heat Sink Small Storage Unit Large Storage Unit Medium Matter Pod (100) High-capacity Matter Pod (200) Experimental Sensor Array ECM Suite Hacking Suite Hacking Suite Medium Laser Medium Laser Medium Laser Beam Cannon Flail Peak State ------------ > --- POWER ------------ Improved Ion Engine > --- PROPULSION ------- Light Treads Wheel > --- UTILITY ---------- Improved Heat Sink Huge Storage Unit > --- WEAPON ----------- Medium Laser Medium Laser > --- INVENTORY -------- Ion Engine Ion Engine Improved Ion Engine Improved Ion Engine Heat Sink Small Storage Unit Large Storage Unit Medium Matter Pod High-capacity Matter Pod ECM Suite Medium Armor Plating Medium Armor Plating Medium Armor Plating Hacking Suite Medium Laser Medium Laser Medium Laser Medium Laser Medium Laser Medium Laser Beam Cannon Flail [Rating: 13] Favorites ----------- Power Improved Ion Engine Engine Improved Ion Engine Propulsion Light Treads Treads Light Treads Leg Aluminum Leg Wheel Wheel Utility Huge Storage Unit Device Improved Heat Sink Storage Huge Storage Unit Processor Terrain Scan Processor Protection Medium Armor Plating Weapon Medium Laser Energy Gun Medium Laser Ballistic Gun Light Assault Rifle Launcher Rocket Launcher Build | -11 -10 -10 ------- Run | Yrd Mat Min Slots Evolved . | . . . Power . | . . . Propulsion . | . . . Utility . | . . . Weapon . | . . . Parts Attached 42 | 3 19 20 Power 7 | . 4 3 Engine 7 | . 4 3 Core . | . . . Reactor . | . . . Propulsion 14 | 2 4 8 Treads 4 | 2 2 . Leg . | . . . Wheel 10 | . 2 8 Hover . | . . . Flight . | . . . Utility 11 | 1 7 3 Device 3 | 1 2 . Storage 1 | . 1 . Processor 1 | . . 1 Hackware . | . . . Protection 6 | . 4 2 Artifact . | . . . Weapon 10 | . 4 6 Energy Gun 8 | . 4 4 Energy Cannon . | . . . Ballistic Gun 1 | . . 1 Ballistic Cannon . | . . . Launcher 1 | . . 1 Special Weapon . | . . . Impact Weapon . | . . . Slashing Weapon . | . . . Piercing Weapon . | . . . Special Melee Weapon . | . . . Unidentified Prototypes . | . . . Parts Lost 19 | . 6 13 Power 4 | . 2 2 Propulsion 7 | . 2 5 Utility 4 | . 1 3 Weapon 4 | . 1 3 Highest Loss Streak 4 | . 2 4 To Critical Strikes . | . . . Average Slot Usage (%) 94 | . 96 90 Engine 13 | . 13 12 Treads 16 | . 20 7 Wheel 7 | . 3 14 Device 6 | . 10 . Storage 14 | . 14 14 Protection 6 | . 3 11 Energy Gun 24 | . 26 21 Ballistic Gun 2 | . 1 4 Peak Build Rating 13 | 9 13 13 Average Rating 10 | 7 11 10 On Entrance 8 | 6 9 11 Naked Turns . | . . . Heaviest Build 98 | 13 96 98 Greatest Support 40 | 40 40 26 Greatest Overweight (x) 30 | . 9 30 Average Overweight (x) 5 | . 4 7 Largest Inventory Capacity 25 | 8 25 25 Average Capacity 23 | 8 22 25 Most Carried 25 | 6 24 25 Average Carried 18 | 4 17 21 Final Capacity 25 | 8 25 25 Final Carried 23 | 5 23 19 Class Distribution -------------------- 96% | Mutant 3% | Scavenger-Mutant Dominant Class ---------------- Mutant | -10/Materials Mutant | -10/Mines Resources | -11 -10 -10 ----------- Run | Yrd Mat Min Matter Collected 1209 | 224 609 376 Remotely . | . . . Salvage Created 940 | 76 632 232 Parts 52 | 6 39 7 Haulers Intercepted 1 | . 1 . Recyclers Shooed 6 | 1 5 . Parts Field Recycled . | . . . Retrieved Matter . | . . . Parts Self-Destructed . | . . . Prevented . | . . . Kills | -11 -10 -10 ------- Run | Yrd Mat Min Combat Hostiles Destroyed 29 | . 11 18 Guns 24 | . 11 13 AOE 5 | . . 5 Classes Destroyed 10 | 2 5 3 Builder 2 | . 1 1 Tunneler 1 | 1 . . Hauler 1 | . 1 . Recycler 2 | 1 1 . Operator 2 | . 2 . Watcher 2 | . 2 . Swarmer 3 | . . 3 Grunt 12 | . 11 1 Demolisher 1 | . . 1 Assembled 13 | . . 13 Best Kill Streak 3 | 1 2 3 Combat Bots Only 3 | . 2 3 Max Kills in Single Turn 2 | 1 2 2 Gunslinging . | . . . Exploded 2 | . . 2 Melee . | . . . Uniques/NPCs Destroyed . | . . . Combat | -11 -10 -10 -------- Run | Yrd Mat Min Hostile Shots Fired 178 | . 99 79 Missed 31 | . 21 10 Damage Taken 2219 | . 1037 1182 Core 260 | . 133 127 Absorbed by Shields . | . . . Core Remaining (%) 100 | 100 . . Volleys Fired 184 | 4 96 84 Largest 2 | 2 2 2 Hottest 100 | 60 100 100 Shots Fired 302 | 8 173 121 Gun 290 | 8 173 109 Cannon . | . . . Launcher 12 | . . 12 Special . | . . . Kinetic 76 | 4 34 38 Thermal 214 | 4 139 71 Explosive 12 | . . 12 Electromagnetic . | . . . Robot Hit Streak 15 | 6 15 5 Robot Miss Streak 8 | . 5 8 Penetration Max . | . . . Secondary Targets 3 | . 2 1 Max Gunslinging Chain 1 | . 1 1 Shots Hit Robots 190 | 6 122 62 Core Hits 84 | 3 42 39 Critical Kills . | . . . Critical Parts Destroyed . | . . . Critical Strikes 9 | . 4 5 Burn 9 | . 4 5 Melee Attacks . | . . . Impact . | . . . Slashing . | . . . Piercing . | . . . Sneak Attacks . | . . . Combat Hostiles . | . . . Follow-up Attacks . | . . . Damage Inflicted 2421 | 59 1396 966 Guns 2010 | 59 1329 622 Cannons . | . . . Explosions 344 | . . 344 Melee . | . . . Ramming 67 | . 67 . Kinetic 396 | 14 199 183 Thermal 1614 | 45 1130 439 Explosive 344 | . . 344 Electromagnetic . | . . . Impact . | . . . Slashing . | . . . Piercing . | . . . Highest Corruption 11 | . 9 11 Average Corruption 8 | . 7 9 Corruption Purged . | . . . Corruption Blocked . | . . . Effects 106 | . 54 52 Message Errors 25 | . 13 12 Matter Fused 30 | . 17 13 Heat Flow Errors 9 | . 7 2 Energy Discharges 12 | . 6 6 Parts Rejected 1 | . . 1 Parts Fused 1 | . 1 . Data Loss (minor) 10 | . 5 5 Data Loss (major) 5 | . . 5 Misfires 7 | . 5 2 Alerts 1 | . . 1 Weapon Failures 5 | . . 5 Overload Shots . | . . . Overflow Damage . | . . . Projectiles . | . . . Explosions . | . . . Melee . | . . . Knockbacks . | . . . Impact . | . . . Kinetic . | . . . Secondary . | . . . Self-Inflicted Damage 129 | . 20 109 Shots 6 | . . 6 Rammed 10 | . 10 . Targets Rammed 11 | . 11 . Kicked . | . . . Crushed 1 | . 1 . Highest Temperature 321 | 40 321 294 Average Temperature 102 | 16 117 92 Received Heat Transfer 1119 | . 582 537 Effects 8 | . 7 1 Energy Bleed 3 | . 3 . Interference 5 | . 4 1 Siege Activations . | . . . Robots Corrupted . | . . . Combat Hostiles . | . . . Parts Fried . | . . . Impact Corruptions . | . . . Robots Melted . | . . . Combat Hostiles . | . . . Parts Melted 8 | . 6 2 Heat Transferred 4881 | 100 3153 1628 Parts Sabotaged . | . . . Parts Stolen . | . . . Parts Stripped . | . . . Power Chain Reactions . | . . . Alert | -11 -10 -10 ------- Run | Yrd Mat Min Peak Influence 195 | 10 195 112 Initial 22 | . 6 22 Average 32 | 6 33 31 Maximum Alert Level . | . . . Low Security (%) 100 | 100 100 100 Level 1 . | . . . Level 2 . | . . . Level 3 . | . . . Level 4 . | . . . Level 5 . | . . . High Security . | . . . Max Security . | . . . Squads Dispatched 4 | . 4 . Investigation 1 | . 1 . Extermination . | . . . Reinforcement 3 | . 3 . Assault . | . . . Garrison . | . . . Intercept . | . . . Searches Triggered . | . . . Construction Impeded . | . . . Haulers Reinforced . | . . . Active Scanning Responses . | . . . Cargo Convoy Interrupts . | . . . Stealth | -11 -10 -10 --------- Run | Yrd Mat Min Distress Signals 3 | . 3 . Communications Jammed . | . . . Distress Signals . | . . . Times Spotted 55 | . 36 19 Peak Tracking Total 5 | . 5 2 Tactical Retreats 2 | . . 2 Traps | -11 -10 -10 ------- Run | Yrd Mat Min Traps Triggered 3 | . 3 . Indirectly . | . . . Trap Hack Attempts . | . . . Triggered . | . . . Disarmed . | . . . Reprogrammed . | . . . Reused . | . . . Traps Extracted . | . . . Installed . | . . . Triggered . | . . . Machines | -11 -10 -10 ---------- Run | Yrd Mat Min Machines Disabled . | . . . Max in Single Turn . | . . . Machines Repaired . | . . . Machines Dismantled . | . . . Machines Sabotaged . | . . . Overloaded Fab Kills . | . . . Hacking | -11 -10 -10 --------- Run | Yrd Mat Min Machines Accessed 8 | . 8 . Terminals 5 | . 5 . Fabricators . | . . . Repair Stations 1 | . 1 . Recycling Units 2 | . 2 . Scanalyzers . | . . . Garrison Access . | . . . Total Hacks 23 | . 23 . Successful 10 | . 10 . Failed 13 | . 13 . Catastrophic 4 | . 4 . Database Lockouts . | . . . Manual 12 | . 12 . Terminals 16 | . 16 . Fabricators . | . . . Repair Stations 3 | . 3 . Recycling Units 4 | . 4 . Scanalyzers . | . . . Garrison Access . | . . . Terminal Hacks 5 | . 5 . Part Schematic 1 | . 1 . Robot Analysis 3 | . 3 . Prototype ID Bank 1 | . 1 . Fabricator Hacks . | . . . Repair Station Hacks 1 | . 1 . Scan Component 1 | . 1 . Recycling Unit Hacks . | . . . Scanalyzer . | . . . Garrison Access Hacks . | . . . Unauthorized Hacks 4 | . 4 . Terminals . | . . . Fabricators . | . . . Repair Stations . | . . . Recycling Units 4 | . 4 . Reject 2 | . 2 . Mask 2 | . 2 . Scanalyzers . | . . . Garrison Access . | . . . Data Cores Recovered . | . . . Used . | . . . Hacking Detections 7 | . 7 . Full Trace Events 1 | . 1 . Feedback Events . | . . . Feedback Blocked . | . . . Robot Schematics Acquired . | . . . Robots Built . | . . . Authchips . | . . . Time . | . . . Total Robot Build Rating . | . . . Part Schematics Acquired 1 | . 1 . Parts Built . | . . . Authchips . | . . . Time . | . . . Total Part Build Rating . | . . . Parts Repaired . | . . . Time . | . . . Parts Recycled . | . . . Recycled Matter . | . . . Retrieved Matter . | . . . Retrieved Components . | . . . Parts Scanalyzed . | . . . Part Schematics Acquired . | . . . Parts Damaged . | . . . Bothacking | -11 -10 -10 ------------ Run | Yrd Mat Min Used RIF Installer . | . . . Robots Hacked . | . . . Non-combat . | . . . Combat . | . . . Robot Hacks Applied . | . . . Relay Couplers Released . | . . . Fabnet Peak Effective % . | . . . Robots Rewired . | . . . Allies Hacked . | . . . Hacks Repelled . | . . . Allies | -11 -10 -10 -------- Run | Yrd Mat Min Total Allies . | . . . Largest Group . | . . . Highest-Rated Group . | . . . Highest-Rated Ally . | . . . Total Orders . | . . . Ally Attacks . | . . . Total Damage . | . . . Kills . | . . . Allies Corrupted . | . . . Allies Melted . | . . . Intel | -11 -10 -10 ------- Run | Yrd Mat Min Robot Analysis Total 3 | . 3 . Derelict Logs Recovered 2 | . . 2 Drone Launches . | . . . Drone Recoveries . | . . . Exploration | -11 -10 -10 ------------- Run | Yrd Mat Min Turns Passed 4483 | 72 2910 1501 Spaces Moved 1510 | 35 924 551 Core 12 | . . 12 Treads 610 | 34 576 . Legs 1 | 1 . . Wheels 887 | . 348 539 Hover . | . . . Flight . | . . . Fastest Speed 120 | 120 160 135 Average Speed 248 | 158 270 217 Slowest Speed 1550 | 160 480 1550 Overloaded Moves . | . . . Propulsion Burnouts . | . . . Robots Hopped . | . . . Cave-ins Triggered . | . . . Exploration Rate (%) 65 | 4 97 95 Regions Visited 2 Branch Regions 1 Pre-discovered Areas . | . . . Known Exits Taken . | . . . Unknown Exits Taken 2 | 1 1 . Scrap Searched 2 | . . 2 Spaces Dug 11 | . . 11 Terrain Destroyed 75 | . . 75 Melee . | . . . Projectile . | . . . AOE 75 | . . 75 Terrain Rammed 2 | . 2 . Walls Destroyed . | . . . Machines Disabled . | . . . Actions | -11 -10 -10 --------- Run | Yrd Mat Min Total 1909 | 44 1133 732 Wait 118 | . 48 70 Move 1508 | 34 923 551 Hop . | . . . Pick Up 30 | 1 25 4 Fast Attach 11 | 1 4 6 Attach 13 | . 5 8 Detach . | . . . Swap 18 | 2 10 6 Drop 14 | 2 9 3 Fire 184 | 4 96 84 Melee . | . . . Ram 3 | . 3 . Kick . | . . . Crush 10 | . 10 . Escape Stasis . | . . . Rewire . | . . . Trap . | . . . Miscellaneous . | . . . Route ------- -11/Scrapyard -10/Materials (discovered 4 exits: *Mat x3 / [*Min]) -10/Mines (discovered 2 exits: *Mat x2) History --------- Turn | Location | Event 1 | -11/Scrapyard | Discovered new exit (range 1) 73 | -11/Scrapyard | Entered Materials 314 | -10/Materials | Build established: Mutant 786 | -10/Materials | Discovered new exit (range 13) 1112 | -10/Materials | Discovered new exit (range 16) 1435 | -10/Materials | Discovered new exit (range 14) 2481 | -10/Materials | Core integrity fell below 50% 2693 | -10/Materials | Discovered new exit (range 15) 2983 | -10/Materials | Entered Mines 3039 | -10/Mines | Learned location of 1 exit from Materials 3100 | -10/Mines | Met a Derelict bent on vengeance 3303 | -10/Mines | Identified exit to Materials 3446 | -10/Mines | Found a damaged Exp. Sensor Array with a note attached 3450 | -10/Mines | Found Prototype Device 3466 | -10/Mines | Discovered exit to Materials (range 12) 3557 | -10/Mines | Received a Rocket Launcher from a helpful Derelict 3670 | -10/Mines | Assembled infested the area 3675 | -10/Mines | Assisted by a Guerilla fighting off Assembled 3795 | -10/Mines | Lost 4 parts (1p2n1u) 3965 | -10/Mines | Found a hidden stash of uninstalled traps 4041 | -10/Mines | Core integrity fell below 20% 4159 | -10/Mines | System corruption reached 10% 4484 | -10/Mines | Destroyed by as-67660 with Assembled Heavy Rifle Last Messages --------------- 04266_ System corrupted: Component data lost. 04318_ CK|WWS ZCX>VWH7YQLBPZH7 N=9T1SHSOLP 04351_ Acquired Wheel. 04354_ IJS/VSI DVTRPIDCQ